lending/lending_fUSD_20260222
["ID","MTS","AMOUNT","RATE_DAILY","PERIOD"]
[406351073,1771779833201,1620.118319,0.0001498,7]
[406351074,1771779834044,1865.138039,0.0001498,7]
[406351075,1771779834869,2110.157759,0.0001498,7]
[406351076,1771779835638,2355.177479,0.0001498,7]
[406351077,1771779855865,2044.820116,0.00014943,2]
[406351078,1771779970163,163.74,0.00012476,2]
[406351103,1771780231479,-166.66,0.00015019,2]
[406351104,1771780231489,-600.0,0.0001502,2]
[406351105,1771780231498,-300.0,0.0001502,2]
[406351106,1771780231508,-300.09439973,0.00015021,2]
[406351107,1771780231518,-500.0,0.00015021,2]
[406351108,1771780231530,-195.0,0.00015023,2]
[406351109,1771780231542,-600.0,0.00015025,2]
[406351110,1771780231552,-600.0,0.00015025,2]
[406351111,1771780231562,-250.0,0.00015027,2]
[406351112,1771780231571,-223.41632665,0.00015035,2]
[406351113,1771780231581,-296.274546,0.00015051,7]
[406351114,1771780231590,-161.71,0.000151,2]
[406351115,1771780231604,-166.66,0.00015335,2]
[406351116,1771780231613,-300.0,0.00015339,2]
[406351117,1771780231623,-1500.0,0.00015343,2]
[406351118,1771780231632,-713.0,0.000154,2]
[406351119,1771780231642,-1200.0,0.00015497,2]
[406351122,1771780231651,-5217.08235249,0.00015498,2]
[406351124,1771780231661,-300.0,0.00015498,2]
[406351126,1771780231670,-162.380719,0.00015499,2]
[406351127,1771780231679,-168.3888056,0.00015499,2]
[406351128,1771780231689,-174.61919141,0.00015499,2]
[406351129,1771780231699,-181.08010149,0.00015499,2]
[406351130,1771780231709,-187.78006525,0.00015499,2]
[406351131,1771780231719,-194.72792766,0.00015499,2]
[406351132,1771780231728,-201.93286099,0.00015499,2]
[406351133,1771780231738,-500.0,0.00015499,2]
[406351134,1771780231748,-209.40437684,0.00015499,2]
[406351135,1771780231757,-283.03296635,0.00015499,2]
[406351136,1771780231767,-217.15233878,0.00015499,2]
[406351137,1771780231777,-225.18697532,0.00015499,2]
[406351138,1771780231787,-233.51889341,0.00015499,2]
[406351139,1771780231802,-242.15909246,0.00015499,2]
[406351140,1771780231811,-289.44430012,0.00015499,2]
[406351141,1771780231969,-110.04086156,0.00015499,2]
[406351142,1771780231979,-151.0,0.00015499,2]
[406351143,1771780231989,-151.0,0.00015499,2]
[406351144,1771780231998,-151.0,0.00015499,2]
[406351145,1771780232008,-151.0,0.00015499,2]
[406351146,1771780232018,-151.0,0.00015499,2]
[406351147,1771780232027,-151.0,0.00015499,2]
[406351148,1771780232037,-151.0,0.00015499,2]
[406351149,1771780232046,-151.0,0.00015499,2]
[406351150,1771780232056,-151.0,0.00015499,2]
[406351151,1771780232066,-151.0,0.00015499,2]
[406351152,1771780232075,-200.0,0.00015499,2]
[406351153,1771780232085,-151.0,0.00015499,2]
[406351154,1771780232094,-151.0,0.00015499,2]
[406351155,1771780232104,-151.0,0.00015499,2]
[406351156,1771780232117,-151.0,0.00015499,2]
[406351157,1771780232126,-151.0,0.00015499,2]
[406351158,1771780232135,-151.0,0.00015499,2]
[406351159,1771780232145,-151.0,0.00015499,2]
[406351160,1771780232154,-151.0,0.00015499,2]
[406351161,1771780232163,-151.0,0.00015499,2]
[406351162,1771780232173,-151.0,0.00015499,2]
[406351163,1771780232182,-151.0,0.00015499,2]
[406351164,1771780232191,-151.0,0.00015499,2]
[406351165,1771780232200,-151.0,0.00015499,2]
[406351166,1771780232210,-151.0,0.00015499,2]
[406351167,1771780232219,-151.0,0.00015499,2]
[406351168,1771780232228,-151.0,0.00015499,2]
[406351169,1771780232238,-151.0,0.00015499,2]
[406351170,1771780232248,-151.0,0.00015499,2]
[406351171,1771780232257,-151.0,0.00015499,2]
[406351172,1771780232267,-151.0,0.00015499,2]
[406351173,1771780232277,-151.0,0.00015499,2]
[406351174,1771780232287,-202.55,0.000155,2]
[406351175,1771780232296,-2.0,0.00015508,2]
[406351176,1771780232310,-46378.60342108,0.00015508,2]
[406351177,1771780232319,-436.26,0.00015532,2]
[406351178,1771780232329,-166.66,0.00015651,2]
[406351179,1771780232339,-177.764728,0.00015768,7]
[406351180,1771780232349,-269.0,0.00015824,2]
[406351181,1771780232358,-1072.0,0.00015825,2]
[406351182,1771780232368,-383.0,0.00015825,2]
[406351183,1771780232377,-1852.42,0.00015843,2]
[406351184,1771780232386,-1319.90522772,0.00015856,2]
[406351185,1771780232395,-150.0,0.0001588,2]
[406351186,1771780232405,-1000.0,0.00015894,2]
[406351187,1771780232414,-159.92,0.00015925,2]
[406351188,1771780232423,-348.838846,0.0001596,7]
[406351189,1771780232432,-166.66,0.00015967,2]
[406351190,1771780232441,-2503.20595634,0.00016,2]
[406351191,1771780232450,-5531.0,0.000162,3]
[406351192,1771780232460,-166.66,0.00016284,2]
[406351193,1771780232469,-500.0,0.00016349,2]
[406351194,1771780232479,-500.0,0.00016349,2]
[406351195,1771780232488,-150.0,0.00016349,2]
[406351196,1771780232497,-150.0,0.00016349,2]
[406351197,1771780232509,-500.0,0.00016404,2]
[406351198,1771780232518,-500.0,0.00016404,2]
[406351199,1771780232528,-500.0,0.00016459,2]
[406351200,1771780232538,-500.0,0.00016459,2]
[406351201,1771780232548,-37732.37,0.00016464,2]
[406351202,1771780232558,-500.0,0.00016513,2]
[406351203,1771780232568,-447.64402894,0.00016513,2]
[406351204,1771780232580,-300.0,0.00016521,2]
[406351205,1771780232588,-2411.64893281,0.00016521,2]
[406351206,1771780232599,-250.0,0.00016521,2]
[406351207,1771780232611,-250.0,0.00016521,2]
[406351208,1771780232623,-194.0122658,0.00016521,2]
[406351209,1771780232632,-195.0,0.00016521,2]
[406351210,1771780232643,-600.0,0.00016521,2]
[406351211,1771780232654,-300.0,0.00016521,2]
[406351212,1771780232663,-500.0,0.00016521,2]
[406351213,1771780232674,-5000.0,0.00016521,2]
[406351214,1771780232685,-600.0,0.00016521,2]
[406351215,1771780232695,-300.0,0.00016521,2]
[406351216,1771780232704,-200.52651247,0.00016521,2]
[406351217,1771780232714,-350.0,0.00016568,2]
[406351218,1771780232725,-159.74,0.0001657,2]
[406351219,1771780232734,-500.0,0.00016598,2]
[406351220,1771780232743,-500.0,0.00016598,2]
[406351221,1771780232754,-500.0,0.00016598,2]
[406351222,1771780232763,-500.0,0.00016598,2]
[406351223,1771780232772,-500.0,0.00016598,2]
[406351224,1771780232781,-166.66,0.000166,2]
[406351225,1771780232790,-510.0,0.00016629,2]
[406351226,1771780232799,-500.0,0.00016699,2]
[406351227,1771780232809,-500.0,0.00016699,2]
[406351228,1771780232818,-150.58,0.0001672,30]
[406351229,1771780232830,-718.8125,0.00016766,2]
[406351230,1771780232840,-420.0,0.00016782,2]
[406351231,1771780232850,-400.0,0.000168,6]
[406351232,1771780232862,-7480.61099184,0.00016863,2]
[406351233,1771780232873,-1092.10173587,0.00016865,5]
[406351234,1771780232883,-500.0,0.00016865,2]
[406351235,1771780232903,-500.0,0.00016865,2]
[406351236,1771780232913,-500.0,0.00016865,2]
[406351237,1771780232923,-500.0,0.00016865,2]
[406351238,1771780232935,-500.0,0.00016865,2]
[406351239,1771780232944,-500.0,0.00016865,2]
[406351240,1771780232954,-500.0,0.00016865,2]
[406351241,1771780232963,-500.0,0.00016865,2]
[406351242,1771780232972,-500.0,0.00016865,2]
[406351243,1771780232982,-500.0,0.00016865,2]
[406351244,1771780232992,-500.0,0.00016865,2]
[406351245,1771780233002,-500.0,0.00016865,2]
[406351246,1771780233011,-500.0,0.00016865,2]
[406351247,1771780233021,-500.0,0.00016865,2]
[406351248,1771780233031,-500.0,0.00016865,2]
[406351249,1771780233041,-500.0,0.00016865,2]
[406351250,1771780233051,-279.79172622,0.00016865,2]
[406351251,1771780233061,-500.0,0.00016865,2]
[406351252,1771780233071,-500.0,0.00016865,2]
[406351253,1771780233080,-500.0,0.00016865,2]
[406351254,1771780233090,-500.0,0.00016865,2]
[406351255,1771780233099,-500.0,0.00016865,2]
[406351256,1771780233109,-500.0,0.00016865,2]
[406351257,1771780233119,-500.0,0.00016865,2]
[406351258,1771780233130,-180.42022769,0.00016865,2]
[406351259,1771780233140,-500.0,0.00016865,2]
[406351260,1771780233149,-500.0,0.00016865,2]
[406351261,1771780233159,-500.0,0.00016865,2]
[406351262,1771780233169,-500.0,0.00016865,2]
[406351263,1771780233179,-500.0,0.00016865,2]
[406351264,1771780233189,-500.0,0.00016865,2]
[406351265,1771780233199,-800.0,0.000169,6]
[406351266,1771780233211,-264.39,0.00016963,2]
[406351267,1771780233221,-5531.0,0.00017,5]
[406351268,1771780233231,-1680.0,0.00017038,2]
[406351269,1771780233241,-2500.0,0.00017233,2]
[406351270,1771780233250,-423.28927868,0.00017233,2]
[406351271,1771780233260,-657.25458569,0.00017233,2]
[406351272,1771780233269,-200.03451288,0.00017323,2]
[406351273,1771780233279,-151.0,0.0001733,2]
[406351274,1771780233289,-402.84431611,0.00017332,2]
[406351275,1771780233299,-190.1983249,0.00017332,2]
[406351276,1771780233308,-500.0,0.00017332,2]
[406351277,1771780233318,-500.0,0.00017332,2]
[406351278,1771780233327,-266.0245795,0.00017332,2]
[406351279,1771780233337,-606983.7402336,0.00017333,2]
[406351280,1771780233351,-1205.79627524,0.00017333,2]
[406351281,1771780233362,-1337.70986208,0.00017333,2]
[406351282,1771780233373,-1257.02204758,0.00017333,2]
[406351283,1771780233387,-459.33646048,0.00017333,2]
[406351284,1771780233398,-2004.84629441,0.00017333,2]
[406351285,1771780233410,-601.15370559,0.00017333,2]
[406351288,1771780237518,-500.0,0.0001652,2]
[406351289,1771780237529,-500.0,0.0001652,2]
[406351290,1771780237539,-306.46892712,0.0001652,2]
[406351291,1771780237550,-500.0,0.0001652,2]
[406351292,1771780237561,-500.0,0.0001652,2]
[406351293,1771780237574,-500.0,0.0001652,2]
[406351294,1771780237583,-500.0,0.0001652,2]
[406351295,1771780237596,-214.71616814,0.0001652,2]
[406351296,1771780237607,-285.28383186,0.0001652,2]
[406351297,1771780237616,-500.0,0.0001652,2]
[406351298,1771780237625,-500.0,0.0001652,2]
[406351299,1771780237634,-227.78489134,0.0001652,2]
[406351300,1771780237643,-228.41490105,0.0001652,2]
[406351301,1771780237663,-271.58509895,0.0001652,2]
[406351302,1771780237672,-500.0,0.0001652,2]
[406351304,1771780237681,-393.86523631,0.0001652,2]
[406351454,1771780239521,-106.13476369,0.0001652,2]
[406351455,1771780239530,-500.0,0.0001652,2]
[406351456,1771780239540,-500.0,0.0001652,2]
[406351457,1771780239550,-500.0,0.0001652,2]
[406351458,1771780239559,-500.0,0.0001652,2]
[406351459,1771780239569,-500.0,0.0001652,2]
[406351460,1771780239578,-500.0,0.0001652,2]
[406351461,1771780239587,-500.0,0.0001652,2]
[406351462,1771780239597,-500.0,0.0001652,2]
[406351463,1771780239608,-500.0,0.0001652,2]
[406351464,1771780239620,-500.0,0.0001652,2]
[406351465,1771780239630,-500.0,0.0001652,2]
[406351466,1771780239640,-500.0,0.0001652,2]
[406351467,1771780239652,-500.0,0.0001652,2]
[406351468,1771780239663,-500.0,0.0001652,2]
[406351469,1771780239674,-500.0,0.0001652,2]
[406351470,1771780239684,-500.0,0.0001652,2]
[406351471,1771780239693,-500.0,0.0001652,2]
[406351472,1771780239704,-500.0,0.0001652,2]
[406351473,1771780239713,-500.0,0.0001652,2]
[406351474,1771780239723,-500.0,0.0001652,2]
[406351475,1771780239732,-500.0,0.0001652,2]
[406351476,1771780239742,-500.0,0.0001652,2]
[406351477,1771780239751,-500.0,0.0001652,2]
[406351478,1771780239761,-500.0,0.0001652,2]
[406351479,1771780239770,-500.0,0.0001652,2]
[406351480,1771780239779,-500.0,0.0001652,2]
[406351481,1771780239790,-562687.81212102,0.00017333,2]
[406351482,1771780239799,-487.0,0.00017333,2]
[406351483,1771780239808,-487.0,0.00017333,2]
[406351484,1771780239818,-487.0,0.00017333,2]
[406351485,1771780239827,-487.0,0.00017333,2]
[406351486,1771780239837,-487.0,0.00017333,2]
[406351487,1771780239846,-487.0,0.00017333,2]
[406351488,1771780239857,-487.0,0.00017333,2]
[406351489,1771780239869,-7480.61099177,0.00017423,2]
[406351490,1771780239878,-503.32852641,0.00017573,2]
[406351491,1771780239887,-500.0,0.00017573,2]
[406351492,1771780239898,-500.0,0.00017573,2]
[406351493,1771780239907,-500.0,0.00017573,2]
[406351494,1771780239917,-593.32806004,0.00017573,2]
[406351495,1771780239927,-500.0,0.00017573,2]
[406351496,1771780239937,-166.86938504,0.00017573,2]
[406351497,1771780239948,-500.0,0.00017573,2]
[406351498,1771780239958,-504.62313566,0.00017573,2]
[406351499,1771780239968,-504.52292806,0.00017573,2]
[406351500,1771780239977,-244.77410291,0.00017573,2]
[406351501,1771780239987,-500.0,0.00017573,2]
[406351502,1771780239996,-508.91863581,0.00017573,2]
[406351503,1771780240005,-501.01096908,0.00017573,2]
[406351504,1771780240014,-573.00614515,0.00017573,2]
[406351505,1771780240024,-500.0,0.00017573,2]
[406351506,1771780240033,-1200.0,0.000177,6]
[406351507,1771780240043,-1600.0,0.000178,6]
[406351508,1771780240053,-1344.27474601,0.00017808,2]
[406351510,1771780240062,-1344.27474601,0.00017808,2]
[406351511,1771780240071,-1344.27474601,0.00017808,2]
[406351513,1771780240082,-1344.27474601,0.00017808,2]
[406351516,1771780240093,-1344.27474601,0.00017808,2]
[406351517,1771780240102,-1344.27474601,0.00017808,2]
[406351519,1771780240111,-1344.27474601,0.00017808,2]
[406351521,1771780240121,-1344.27474601,0.00017808,2]
[406351523,1771780240131,-1344.27474601,0.00017808,2]
[406351525,1771780240141,-1344.27474601,0.00017808,2]
[406351527,1771780240150,-1344.27474601,0.00017808,2]
[406351529,1771780240159,-1344.27474601,0.00017808,2]
[406351531,1771780240168,-1344.27474601,0.00017808,2]
[406351533,1771780240177,-1344.27474601,0.00017808,2]
[406351535,1771780240186,-1344.27474601,0.00017808,2]
[406351537,1771780240195,-1344.27474601,0.00017808,2]
[406351539,1771780240205,-1377.88161467,0.00017808,2]
[406351541,1771780240214,-1377.88161467,0.00017808,2]
[406351543,1771780240223,-1377.88161467,0.00017808,2]
[406351545,1771780240233,-1377.88161467,0.00017808,2]
[406351547,1771780240242,-1377.88161467,0.00017808,2]
[406351549,1771780240251,-1377.88161467,0.00017808,2]
[406351551,1771780240260,-1377.88161467,0.00017808,2]
[406351553,1771780240270,-1377.88161467,0.00017808,2]
[406351555,1771780240279,-1377.88161467,0.00017808,2]
[406351557,1771780240288,-2038.3145265,0.00017808,2]
[406351559,1771780240297,-240.0,0.00017838,2]
[406351561,1771780240306,-1000.0,0.00017881,2]
[406351563,1771780240315,-229.0814951,0.00017894,2]
[406351565,1771780240324,-25000.0,0.000179,3]
[406351567,1771780240335,-1000.0,0.000179,2]
[406351569,1771780240345,-173.78509278,0.000179,3]
[406351571,1771780240354,-2000.0,0.000179,6]
[406351572,1771780240363,-404.92059895,0.000179,2]
[406351573,1771780240372,-199.61758008,0.000179,2]
[406351574,1771780240381,-1694.06427321,0.000179,2]
[406351575,1771780240391,-309.0,0.00017973,2]
[406351576,1771780240402,-15657.359246,0.00017976,7]
[406351577,1771780240412,-173.78509278,0.00017976,7]
[406351578,1771780240421,-226.73826614,0.00017982,2]
[406351579,1771780240431,-7480.61099177,0.00017982,2]
[406351580,1771780240441,-151.0,0.00017991,2]
[406351581,1771780240451,-49806.3400166,0.00017994,2]
[406351582,1771780240461,-17519.2659169,0.00017994,2]
[406351583,1771780240471,-324750.251329,0.00017994,2]
[406351584,1771780240480,-12600.8490219,0.00017994,2]
[406351585,1771780240490,-60238.507653,0.00017994,2]
[406351586,1771780240499,-1757.9667945,0.00017994,2]
[406351587,1771780240508,-151.0,0.00017997,2]
[406351588,1771780240518,-151.0,0.00017997,2]
[406351589,1771780240527,-151.0,0.00017997,2]
[406351590,1771780240537,-931537.34395559,0.00018,2]
[406351591,1771780240548,-2220.73980545,0.00018,2]
[406351592,1771780240557,-1663552.6834587,0.00018,2]
[406351593,1771780240567,-151.0,0.00018,2]
[406351594,1771780240576,-151.0,0.00018,2]
[406351595,1771780240749,-151.0,0.00018,2]
[406351596,1771780240759,-151.0,0.00018,2]
[406351597,1771780240768,-151.0,0.00018,2]
[406351598,1771780240778,-151.0,0.00018,2]
[406351599,1771780240788,-151.0,0.00018,2]
[406351600,1771780240797,-256.047177,0.00018,2]
[406351601,1771780240807,-256.047177,0.00018,2]
[406351602,1771780240816,-256.047177,0.00018,2]
[406351603,1771780240826,-256.047177,0.00018,2]
[406351604,1771780240835,-256.047177,0.00018,2]
[406351605,1771780240844,-256.047177,0.00018,2]
[406351606,1771780240854,-256.047177,0.00018,2]
[406351607,1771780240868,-256.047177,0.00018,2]
[406351608,1771780240878,-151.0,0.00018,2]
[406351609,1771780240887,-151.0,0.00018,2]
[406351610,1771780240897,-151.4934,0.00018,2]
[406351611,1771780240908,-151.0,0.00018,2]
[406351612,1771780240917,-151.0,0.00018,2]
[406351613,1771780240927,-386.276401,0.00018,2]
[406351614,1771780240938,-386.276401,0.00018,2]
[406351615,1771780240948,-386.276401,0.00018,2]
[406351616,1771780240957,-386.276401,0.00018,2]
[406351617,1771780240967,-151.0,0.00018,2]
[406351618,1771780240976,-151.0,0.00018,2]
[406351619,1771780240985,-151.0,0.00018,2]
[406351620,1771780240995,-151.0,0.00018,2]
[406351621,1771780241005,-573.153477,0.00018,2]
[406351622,1771780241014,-573.153477,0.00018,2]
[406351623,1771780241024,-573.153477,0.00018,2]
[406351624,1771780241033,-573.153477,0.00018,2]
[406351625,1771780241042,-151.0,0.00018,2]
[406351626,1771780241052,-151.0,0.00018,2]
[406351627,1771780241061,-151.0,0.00018,2]
[406351628,1771780241070,-151.0,0.00018,2]
[406351629,1771780241079,-151.0,0.00018,2]
[406351630,1771780241089,-151.0,0.00018,2]
[406351631,1771780241098,-151.0,0.00018,2]
[406351632,1771780241107,-151.0,0.00018,2]
[406351633,1771780241116,-151.0,0.00018,2]
[406351634,1771780241125,-932.890926,0.00018,2]
[406351635,1771780241134,-932.890926,0.00018,2]
[406351636,1771780241144,-932.890926,0.00018,2]
[406351637,1771780241154,-932.890926,0.00018,2]
[406351638,1771780241163,-151.0,0.00018,2]
[406351639,1771780241172,-151.0,0.00018,2]
[406351640,1771780241181,-151.0,0.00018,2]
[406351641,1771780241192,-151.0,0.00018,2]
[406351642,1771780241202,-166.66,0.00018086,2]
[406351643,1771780241211,-501.62516482,0.00018121,2]
[406351644,1771780241220,-636.48823945,0.00018121,2]
[406351645,1771780241230,-206.48976748,0.00018121,2]
[406351646,1771780241239,-1000.0,0.00018121,2]
[406351647,1771780241249,-1000.0,0.00018121,2]
[406351648,1771780241258,-175.15043052,0.00018121,2]
[406351649,1771780241267,-186.79,0.00018147,2]
[406351650,1771780241277,-1600.0,0.00018171,2]
[406351651,1771780241287,-1000.0,0.000182,2]
[406351652,1771780241296,-2800.840232,0.0001821,2]
[406351653,1771780241305,-587.0,0.0001836,2]
[406351654,1771780241315,-535.09,0.00018533,2]
[406351655,1771780241325,-6985.85,0.00018533,2]
[406351656,1771780241337,-150.99,0.00018533,2]
[406351657,1771780241346,-9999.99,0.00018533,2]
[406351658,1771780241356,-999.99,0.00018533,2]
[406351659,1771780241366,-150.99,0.00018533,2]
[406351660,1771780241377,-299.99,0.00018533,4]
[406351661,1771780241387,-200.0,0.0001854,2]
[406351662,1771780241397,-7480.61099177,0.00018542,2]
[406351663,1771780241406,-166.66,0.00018629,2]
[406351664,1771780241418,-1500.0,0.00018668,2]
[406351665,1771780241427,-2351.0,0.00018731,2]
[406351666,1771780241437,-186.79,0.00018972,2]
[406351667,1771780241447,-392.65378736,0.00019,2]
[406351668,1771780241458,-154.45264033,0.00019,2]
[406351669,1771780241467,-7480.61099177,0.00019102,2]
[406351670,1771780241477,-436.048557,0.00019152,7]
[406351671,1771780241486,-166.66,0.00019172,2]
[406351672,1771780241495,-1379.37432712,0.00019178,2]
[406351673,1771780241505,-151.0,0.00019178,2]
[406351674,1771780241514,-151.0,0.00019178,2]
[406351675,1771780241523,-151.0,0.00019178,2]
[406351676,1771780241532,-151.0,0.00019178,2]
[406351677,1771780241541,-151.0,0.00019178,2]
[406351678,1771780241550,-151.0,0.00019178,2]
[406351679,1771780241559,-152.344841,0.00019178,2]
[406351680,1771780241568,-151.0,0.00019178,2]
[406351681,1771780241577,-151.0,0.00019178,2]
[406351682,1771780241586,-151.0,0.00019178,2]
[406351683,1771780241595,-2000.0,0.00019216,2]
[406351684,1771780241604,-150.0,0.00019308,5]
[406351685,1771780241613,-275.37004532,0.00019308,5]
[406351686,1771780241622,-7480.61099177,0.00019661,2]
[406351687,1771780241631,-512.36453981,0.00019764,2]
[406351688,1771780241640,-186.79,0.00019796,2]
[406351689,1771780241649,-1000.0,0.00019867,2]
[406351690,1771780241658,-200.0,0.00019946,2]
[406351691,1771780241668,-9150.70201334,0.0001995,15]
[406351692,1771780241676,-1001.14515122,0.0002,2]
[406351693,1771780241686,-2000.0,0.0002,2]
[406351694,1771780241695,-2000.0,0.0002001,2]
[406351695,1771780241704,-2000.0,0.0002002,2]
[406351696,1771780241713,-2698.754019,0.0002003,2]
[406351697,1771780241723,-458.0,0.00020087,2]
[406351698,1771780241732,-713.41,0.00020092,2]
[406351699,1771780241741,-6203.877536,0.00020177,2]
[406351700,1771780241750,-1600.0,0.0002019,2]
[406351701,1771780241760,-373.09,0.00020221,2]
[406351702,1771780241769,-7480.61099177,0.00020221,2]
[406351703,1771780241778,-229.08149508,0.00020295,2]
[406351704,1771780241787,-2811.6294602,0.00020301,2]
[406351705,1771780241797,-11113.2966243,0.00020419,2]
[406351706,1771780241806,-3909.0766097,0.00020419,2]
[406351707,1771780241815,-72461.5755872,0.00020419,2]
[406351708,1771780241824,-13441.0278597,0.00020419,2]
[406351709,1771780241833,-2141.702799,0.00020501,2]
[406351710,1771780241842,-3292.0,0.00020594,2]
[406351711,1771780241851,-1384.2721881,0.00020684,2]
[406351712,1771780241864,-180.0,0.00020778,5]
[406351713,1771780241873,-7480.61099177,0.00020781,2]
[406351714,1771780241882,-627.3593317,0.00020816,2]
[406351715,1771780241892,-160.9,0.00020831,2]
[406351716,1771780241903,-2479.7116555,0.0002096,2]
[406351717,1771780241912,-872.2328899,0.0002096,2]
[406351718,1771780241921,-16168.3629653,0.0002096,2]
[406351719,1771780241930,-2999.0986989,0.0002096,2]
[406351720,1771780241939,-173.78509278,0.00021045,2]
[406351721,1771780241948,-477.8784885,0.0002108,2]
[406351722,1771780241958,-423.28927866,0.00021097,2]
[406351723,1771780241967,-159.74,0.00021213,2]
[406351724,1771780241976,-7480.61099177,0.0002134,2]
[406351725,1771780241985,-160.0,0.00021411,2]
[406351726,1771780241994,-223.01004224,0.000215,2]
[406351727,1771780242004,-779.97233681,0.00021778,2]
[406351728,1771780242014,-500.0,0.00021778,2]
[406351729,1771780242023,-600.0,0.00021778,2]
[406351730,1771780242032,-500.0,0.00021778,2]
[406351731,1771780242042,-500.0,0.00021778,2]
[406351732,1771780242051,-500.0,0.00021778,2]
[406351733,1771780242060,-500.0,0.00021778,2]
[406351734,1771780242069,-500.0,0.00021778,2]
[406351735,1771780242078,-500.0,0.00021778,2]
[406351736,1771780242088,-500.0,0.00021778,2]
[406351737,1771780242097,-500.0,0.00021778,2]
[406351739,1771780242106,-500.0,0.00021778,2]
[406351740,1771780242115,-500.0,0.00021778,2]
[406351741,1771780242124,-500.0,0.00021778,2]
[406351742,1771780242133,-500.0,0.00021778,2]
[406351743,1771780242143,-535.84258517,0.00021778,2]
[406351744,1771780242151,-500.0,0.00021778,2]
[406351746,1771780242160,-500.0,0.00021778,2]
[406351748,1771780242169,-245.54629088,0.00021778,2]
[406351750,1771780242178,-1000.0,0.00021854,2]
[406351752,1771780242187,-657.25458566,0.00021895,2]
[406351754,1771780242196,-7480.61099177,0.000219,2]
[406351756,1771780242205,-5000.0,0.00021918,2]
[406351758,1771780242215,-3045.54,0.00021918,2]
[406351760,1771780242224,-150.58,0.00021989,30]
[406351761,1771780242233,-151.0,0.00021997,2]
[406351762,1771780242242,-233.61,0.00022,7]
[406351763,1771780242252,-360764.647445,0.00022,4]
[406351764,1771780242261,-132456.41210482,0.00022,2]
[406351765,1771780242270,-164.92,0.00022,2]
[406351766,1771780242279,-160.0,0.00022,2]
[406351767,1771780242288,-155.27,0.00022028,2]
[406351769,1771780242297,-496.50578643,0.000221,2]
[406351771,1771780242307,-241.26035627,0.0002211,2]
[406351773,1771780242315,-700.0,0.0002214,2]
[406351775,1771780242324,-1600.0,0.0002221,2]
[406351776,1771780242333,-151.0,0.0002221,2]
[406351778,1771780242342,-151.0,0.0002221,2]
[406351779,1771780242351,-151.0,0.0002221,2]
[406351780,1771780242360,-240.82079334,0.0002221,2]
[406351782,1771780242369,-350.0,0.00022389,2]
[406351783,1771780242378,-155.27,0.00022428,2]
[406351784,1771780242387,-12525.887396,0.0002247,30]
[406351785,1771780242397,-573.153477,0.0002247,2]
[406351786,1771780242406,-573.153477,0.0002247,2]
[406351787,1771780242415,-573.153477,0.0002247,2]
[406351788,1771780242424,-573.153477,0.0002247,2]
[406351789,1771780242433,-151.0,0.0002247,2]
[406351791,1771780242443,-151.0,0.0002247,2]
[406351793,1771780242451,-151.0,0.0002247,2]
[406351795,1771780242461,-151.0,0.0002247,2]
[406351796,1771780242470,-151.0,0.0002247,2]
[406351797,1771780242479,-151.0,0.0002247,2]
[406351798,1771780242488,-151.0,0.0002247,2]
[406351800,1771780242498,-151.0,0.0002247,2]
[406351802,1771780242507,-151.0,0.0002247,2]
[406351804,1771780242516,-151.0,0.0002247,2]